Cogmind - Beta 17 @@@ ROGUE MODE // 2026.07.26 @ 16:43:41 Player: Suffixing Result: Core melted Performance ------------- Evolutions (0) 0 Regions Visited (2) 400 Robots Destroyed (27) 135 Value Destroyed (724) 724 Prototype IDs (0) 0 Alien Tech Used (0) 0 Bonus (0) 0 TOTAL SCORE: 1259 Bonus ------- None Cogmind --------- Core Integrity 0/250 Matter 294/300 Energy 220/265 System Corruption 3% Temperature Critical (529) Movement Treading (560) Ox5 Location -10/Subcaves Parts ------- > --- POWER (1) -------- Improved Ion Engine > --- PROPULSION (2) --- Light Treads > --- UTILITY (2) ------ Huge Storage Unit Makeshift Light Armor Plating > --- WEAPON (2) ------- Subdweller Beam Cannon Subdweller Beam Cannon > --- INVENTORY (25) --- Light Treads Light Treads Spiked Treads Wheel Wheel Subdweller Monowheel Subdweller Monowheel Subdweller Monowheel Heat Sink Improved Heat Sink Large Storage Unit Machine Analyzer Seismic Detector Hacking Suite Subdweller Laser Subdweller Laser Subdweller Beam Cannon Subdweller Machine Gun Improved Light Cannon Grenade Launcher Subdweller Shrapnel Launcher Subdweller Shrapnel Launcher Peak State ------------ > --- POWER ------------ Improved Ion Engine > --- PROPULSION ------- Light Treads Light Treads > --- UTILITY ---------- Huge Storage Unit Makeshift Light Armor Plating > --- WEAPON ----------- Subdweller Beam Cannon Improved Light Cannon > --- INVENTORY -------- Light Treads Light Treads Spiked Treads Wheel Wheel Subdweller Monowheel Subdweller Monowheel Subdweller Monowheel Heat Sink Improved Heat Sink Large Storage Unit Machine Analyzer Seismic Detector Hacking Suite Subdweller Laser Subdweller Laser Subdweller Beam Cannon Subdweller Beam Cannon Subdweller Machine Gun Improved Light Cannon Grenade Launcher Subdweller Shrapnel Launcher Subdweller Shrapnel Launcher [Rating: 17] Favorites ----------- Power Improved Ion Engine Engine Improved Ion Engine Propulsion Light Treads Treads Light Treads Leg Aluminum Leg Utility Improved Targeting Computer Storage Huge Storage Unit Processor Improved Targeting Computer Protection Makeshift Light Armor Plating Weapon Improved Light Cannon Energy Gun EM Pulse Gun Energy Cannon Subdweller Beam Cannon Ballistic Cannon Improved Light Cannon Launcher Grenade Launcher Build | -11 -10 -10 ------- Run | Yrd Mat Sub Slots Evolved . | . . . Power . | . . . Propulsion . | . . . Utility . | . . . Weapon . | . . . Parts Attached 17 | 2 6 9 Power 3 | . 2 1 Engine 3 | . 2 1 Core . | . . . Reactor . | . . . Propulsion 4 | 2 . 2 Treads 4 | 2 . 2 Leg . | . . . Wheel . | . . . Hover . | . . . Flight . | . . . Utility 3 | . 2 1 Device . | . . . Storage 1 | . 1 . Processor 1 | . 1 . Hackware . | . . . Protection 1 | . . 1 Artifact . | . . . Weapon 7 | . 2 5 Energy Gun . | . . . Energy Cannon 2 | . . 2 Ballistic Gun . | . . . Ballistic Cannon 4 | . 2 2 Launcher 1 | . . 1 Special Weapon . | . . . Impact Weapon . | . . . Slashing Weapon . | . . . Piercing Weapon . | . . . Special Melee Weapon . | . . . Unidentified Prototypes . | . . . Parts Lost 8 | . . 8 Power 2 | . . 2 Propulsion 3 | . . 3 Utility . | . . . Weapon 3 | . . 3 Highest Loss Streak 3 | . . 3 To Critical Strikes 1 | . . 1 Average Backups 14 | 5 11 16 Power 1 | 1 2 1 Propulsion 4 | 4 2 5 Utility 5 | . 3 6 Weapon 3 | . 2 3 Tool/Special . | . . . Unused Backups 26 | . 7 19 Power 2 | . 2 . Propulsion 7 | . . 7 Utility 9 | . 3 6 Weapon 8 | . 2 6 Tool/Special . | . . . Average Slot Usage (%) 98 | . 99 98 Engine 13 | . 14 13 Treads 27 | . 28 27 Storage 14 | . 14 14 Processor 13 | . 13 13 Energy Cannon 5 | . . 8 Ballistic Cannon 21 | . 27 19 Peak Build Rating 17 | 6 13 17 Average Rating 12 | 6 12 13 On Entrance 8 | 6 6 13 Avg Prop Armor Cover (%) . | . . . Naked Turns . | . . . Heaviest Build 103 | 12 95 103 Greatest Support 40 | 40 40 40 Greatest Overweight (x) 4 | . 2 4 Average Overweight (x) 1 | . 1 2 Largest Inventory Capacity 25 | 8 25 25 Average Capacity 24 | 8 21 25 Most Carried 23 | 5 16 23 Average Carried 14 | 4 11 16 Final Capacity 25 | 8 25 25 Final Carried 22 | 2 16 22 Class Distribution -------------------- 100% | Mutant Dominant Class ---------------- Mutant | -10/Materials Mutant | -10/Subcaves Resources | -11 -10 -10 ----------- Run | Yrd Mat Sub Matter Collected 1038 | 170 275 593 Remotely . | . . . Salvage Created 685 | . 330 355 Parts 44 | . 24 20 Haulers Intercepted 2 | . 2 . Recyclers Shooed . | . . . Parts Field Recycled . | . . . Retrieved Matter . | . . . Parts Self-Destructed 16 | . . 16 Prevented . | . . . Parts Restored . | . . . Kills | -11 -10 -10 ------- Run | Yrd Mat Sub Combat Hostiles Destroyed 21 | . 8 13 Cannons 18 | . 8 10 AOE 3 | . . 3 Classes Destroyed 8 | . 7 1 Builder 1 | . 1 . Hauler 2 | . 2 . Recycler 1 | . 1 . Mechanic 1 | . 1 . Operator 1 | . 1 . Swarmer 5 | . 2 3 Grunt 6 | . 6 . Subdweller 10 | . . 10 Best Kill Streak 3 | . 2 3 Combat Bots Only 3 | . 2 3 Max Kills in Single Turn 2 | . 1 2 Gunslinging . | . . . Exploded 2 | . . 2 Melee . | . . . Uniques/NPCs Destroyed . | . . . Combat | -11 -10 -10 -------- Run | Yrd Mat Sub Hostile Shots Fired 110 | . 29 81 Missed 30 | . 8 22 Hits 80 | . 21 59 Projectile 80 | . 21 59 AOE 1 | . . 1 Critical Strikes 3 | . . 3 Damage Taken 1680 | . 210 1470 Core 261 | . 9 252 Absorbed by Shields . | . . . Core Remaining (%) 100 | 100 . . Volleys Fired 69 | . 20 49 Largest 2 | . 2 2 Hottest 160 | . 66 160 Shots Fired 132 | . 40 92 Gun . | . . . Cannon 130 | . 40 90 Launcher 2 | . . 2 Special . | . . . Kinetic 110 | . 40 70 Thermal 20 | . . 20 Explosive 2 | . . 2 Electromagnetic . | . . . Robot Hit Streak 15 | . 14 15 Robot Miss Streak 3 | . 1 3 Penetration Max . | . . . Secondary Targets . | . . . Shots Hit Robots 83 | . 30 53 Core Hits 35 | . 18 17 Critical Kills . | . . . Critical Parts Destroyed . | . . . Critical Strikes 2 | . . 2 Blast 2 | . . 2 Melee Attacks . | . . . Impact . | . . . Slashing . | . . . Piercing . | . . . Sneak Attacks . | . . . Combat Hostiles . | . . . Follow-up Attacks . | . . . Damage Inflicted 1941 | . 664 1277 Guns . | . . . Cannons 1780 | . 629 1151 Explosions 126 | . . 126 Melee . | . . . Ramming 35 | . 35 . Kinetic 1394 | . 629 765 Thermal 386 | . . 386 Explosive 126 | . . 126 Electromagnetic . | . . . Impact . | . . . Slashing . | . . . Piercing . | . . . Highest Corruption 3 | . 3 3 Average Corruption 2 | . 1 3 Corruption Purged . | . . . Corruption Blocked . | . . . Effects 72 | . 10 62 Message Errors 11 | . 1 10 Matter Fused 29 | . 1 28 Heat Flow Errors 10 | . . 10 Energy Discharges 8 | . 4 4 Parts Rejected 1 | . 1 . Data Loss (minor) 8 | . 2 6 Data Loss (major) 1 | . 1 . Misfires 2 | . . 2 Alerts 1 | . . 1 Weapon Failures 1 | . . 1 Overload Shots . | . . . Overflow Damage 23 | . 19 4 Projectiles 23 | . 19 4 Explosions . | . . . Melee . | . . . Knockbacks 12 | . 5 7 Impact . | . . . Kinetic 12 | . 5 7 Secondary . | . . . Self-Inflicted Damage . | . . . Shots . | . . . Rammed 5 | . 5 . Targets Rammed 7 | . 7 . Kicked . | . . . Crushed 2 | . 2 . Highest Temperature 529 | . 45 529 Average Temperature 63 | . 15 109 Received Heat Transfer 457 | . 54 403 Effects 2 | . . 2 Shutdowns 1 | . . 1 Damage (core) 1 | . . 1 Siege Activations . | . . . Martial Activations . | . . . Shielding Activations . | . . . Robots Disrupted . | . . . Combat Hostiles . | . . . Robots Corrupted . | . . . Combat Hostiles . | . . . Parts Fried . | . . . Impact Corruptions . | . . . Robots Melted . | . . . Combat Hostiles . | . . . Parts Melted 3 | . . 3 Heat Transferred 518 | . . 518 Parts Sabotaged . | . . . Parts Stolen . | . . . Parts Stripped . | . . . Power Chain Reactions . | . . . Alert | -11 -10 -10 ------- Run | Yrd Mat Sub Maximum Alert Level . | . . . Low Security (%) 100 | 100 100 . Level 1 . | . . . Level 2 . | . . . Level 3 . | . . . Level 4 . | . . . Level 5 . | . . . High Security . | . . . Max Security . | . . . Peak Influence 51 | . 51 . Initial . | . . . Average 7 | . 7 . Influence Increases 304 | . 234 70 Destroy 0b10 Robot/C 220 | . 160 60 Destroy 0b10 Robot/NC 30 | . 30 . Destroy Leader 44 | . 34 10 Successful Hack 8 | . 8 . Destroy Structure 2 | . 2 . Influence Decreases 304 | . 234 70 Time Decay 284 | . 234 50 Lost Part 20 | . . 20 Squads Dispatched 2 | . 2 . Investigation 1 | . 1 . Extermination . | . . . Reinforcement 1 | . 1 . Assault . | . . . Garrison . | . . . Intercept . | . . . Searches Triggered . | . . . Construction Impeded . | . . . Haulers Reinforced . | . . . Active Scanning Responses . | . . . Cargo Convoy Interrupts . | . . . Stealth | -11 -10 -10 --------- Run | Yrd Mat Sub Distress Signals . | . . . Communications Jammed . | . . . Distress Signals . | . . . Times Spotted 36 | . 21 15 Peak Tracking Total 3 | . 3 3 Tactical Retreats . | . . . Traps | -11 -10 -10 ------- Run | Yrd Mat Sub Traps Triggered 8 | . 4 4 Indirectly . | . . . Trap Hack Attempts . | . . . Triggered . | . . . Disarmed . | . . . Reprogrammed . | . . . Reused . | . . . Traps Extracted . | . . . Installed . | . . . Triggered . | . . . Machines | -11 -10 -10 ---------- Run | Yrd Mat Sub Machines Disabled . | . . . Max in Single Turn . | . . . Machines Repaired . | . . . Machines Dismantled . | . . . Machines Sabotaged . | . . . Overloaded Fab Kills . | . . . Hacking | -11 -10 -10 --------- Run | Yrd Mat Sub Machines Accessed 6 | . 6 . Terminals 6 | . 6 . Fabricators . | . . . Repair Stations . | . . . Recycling Units . | . . . Scanalyzers . | . . . Garrison Access . | . . . Total Hacks 9 | . 9 . Successful 5 | . 5 . Failed 4 | . 4 . Catastrophic 1 | . 1 . Database Lockouts . | . . . Manual 7 | . 7 . Terminals 9 | . 9 . Fabricators . | . . . Repair Stations . | . . . Recycling Units . | . . . Scanalyzers . | . . . Garrison Access . | . . . Terminal Hacks . | . . . Fabricator Hacks . | . . . Repair Station Hacks . | . . . Recycling Unit Hacks . | . . . Scanalyzer . | . . . Garrison Access Hacks . | . . . Unauthorized Hacks 5 | . 5 . Terminals 5 | . 5 . Skim 5 | . 5 . Fabricators . | . . . Repair Stations . | . . . Recycling Units . | . . . Scanalyzers . | . . . Garrison Access . | . . . Data Cores Recovered 1 | . 1 . Used . | . . . Hacking Detections 4 | . 4 . Full Trace Events 1 | . 1 . Feedback Events . | . . . Feedback Blocked . | . . . Robot Schematics Acquired . | . . . Robots Built . | . . . Authchips . | . . . Time . | . . . Total Robot Build Rating . | . . . Part Schematics Acquired . | . . . Parts Built . | . . . Authchips . | . . . Time . | . . . Total Part Build Rating . | . . . Part Studies Acquired . | . . . Parts Repaired . | . . . Time . | . . . Parts Recycled . | . . . Recycled Matter . | . . . Retrieved Matter . | . . . Retrieved Components . | . . . Parts Scanalyzed . | . . . Part Schematics Acquired . | . . . Parts Damaged . | . . . Bothacking | -11 -10 -10 ------------ Run | Yrd Mat Sub Used RIF Installer . | . . . Robots Hacked . | . . . Non-combat . | . . . Combat . | . . . Robot Hacks Applied . | . . . Relay Couplers Released . | . . . Fabnet Peak Effective % . | . . . Robots Rewired . | . . . Allies Hacked . | . . . Hacks Repelled . | . . . Allies | -11 -10 -10 -------- Run | Yrd Mat Sub Total Allies . | . . . Largest Group . | . . . Highest-Rated Group . | . . . Highest-Rated Ally . | . . . Total Orders . | . . . Ally Attacks . | . . . Total Damage . | . . . Kills . | . . . Allies Corrupted . | . . . Allies Melted . | . . . Intel | -11 -10 -10 ------- Run | Yrd Mat Sub Active Infowar (turns) . | . . . Robot Analysis Total . | . . . Derelict Logs Recovered 2 | . . 2 Drone Launches . | . . . Drone Recoveries . | . . . Exploration | -11 -10 -10 ------------- Run | Yrd Mat Sub Turns Passed 5272 | 5 1600 3667 Spaces Moved 1610 | 1 536 1073 Core . | . . . Treads 1610 | 1 536 1073 Legs . | . . . Wheels . | . . . Hover . | . . . Flight . | . . . Fastest Speed 160 | 160 160 320 Average Speed 305 | 160 273 322 Slowest Speed 480 | 160 320 480 Overloaded Moves . | . . . Propulsion Burnouts . | . . . Robots Hopped . | . . . Potential Cave-ins . | . . . Cave-ins Triggered . | . . . Exploration Rate (%) 49 | 2 79 66 Regions Visited 2 Branch Regions 1 Pre-discovered Areas 5 | . 2 3 Known Exits Taken 1 | . 1 . Unknown Exits Taken 1 | 1 . . Scrap Searched 5 | . . 5 Spaces Dug . | . . . Terrain Destroyed 14 | . 1 13 Melee . | . . . Projectile 1 | . 1 . AOE 13 | . . 13 Terrain Rammed . | . . . Walls Destroyed . | . . . Machines Disabled . | . . . Actions | -11 -10 -10 --------- Run | Yrd Mat Sub Total 1812 | 6 621 1185 Wait 61 | . 24 37 Move 1608 | . 535 1073 Hop . | . . . Pick Up 36 | . 22 14 Fast Attach . | . . . Attach 9 | . 2 7 Detach . | . . . Swap 11 | 2 4 5 Drop 11 | 4 7 . Fire 69 | . 20 49 Melee . | . . . Ram . | . . . Kick . | . . . Crush 7 | . 7 . Escape Stasis . | . . . Rewire . | . . . Trap . | . . . Miscellaneous . | . . . Route ------- -11/Scrapyard -10/Materials (discovered 5 exits: [*Mat x2] / [*Min x2] / *Sub) -10/Subcaves (discovered 3 exits: [*Mat x2] / [*Scr]) History --------- Turn | Location | Event 6 | -11/Scrapyard | Discovered new exit (range 0) 6 | -11/Scrapyard | Entered Materials 168 | -10/Materials | Discovered new exit (range 9) 315 | -10/Materials | Build established: Mutant 386 | -10/Materials | Discovered new exit (range 15) 1052 | -10/Materials | Discovered new exit (range 8) 1084 | -10/Materials | Learned location of Mines (-10) 1212 | -10/Materials | Learned 4 Subcaves zone layouts 1243 | -10/Materials | Identified exit to Subcaves 1263 | -10/Materials | Discovered new exit (range 5) 1265 | -10/Materials | Learned Storage trap positions 1298 | -10/Materials | Learned Storage trap positions 1606 | -10/Materials | Entered Subcaves 1607 | -10/Subcaves | Approached by a straggling Scientist 2203 | -10/Subcaves | Scientist uncovered a shortcut to Scraptown 2288 | -10/Subcaves | Shifting Twisted Machinery released Sub. Beam Cannon 2851 | -10/Subcaves | Discovered new exit (range 9) 3019 | -10/Subcaves | Core integrity fell below 50% 3041 | -10/Subcaves | Lost 3 parts (1p1n1w) 3419 | -10/Subcaves | A swath of the cavern ceiling suddenly collapsed 3538 | -10/Subcaves | A swath of the cavern ceiling suddenly collapsed 3664 | -10/Subcaves | Discovered new exit (range 13) 3789 | -10/Subcaves | Learned location of Zion (-7) 4704 | -10/Subcaves | Disturbed a concealed Subdweller 4772 | -10/Subcaves | Met a Zionite searching for "candidates" 4881 | -10/Subcaves | Shifting Twisted Machinery released Hvy. Battle Rifle 4881 | -10/Subcaves | Shifting Twisted Machinery released Spk. Treads 5270 | -10/Subcaves | Core integrity fell below 20% 5274 | -10/Subcaves | Core melted Last Messages --------------- 05065_ Z4|HWDZCRWF,0U#G :5IF42/ B4IWIE 05066_ Acquired Sub. Laser. 05085_ Subatomizers dissect the Disposable Heat Sink. 05113_ Imp. Ion Engine destroyed. 05113_ 61-YRU(R) destroyed. 05119_ Z1-1AR(R) destroyed. 05139_ Acquired Sub. Shrapnel Launcher. 05140_ Acquired 22 matter. 05147_ Acquired Sub. Monowheel. 05150_ System corrupted: Matter fused (-6). 05151_ Acquired Sub. Monowheel. 05249_ System corrupted: Energy discharge (-82). 05259_ Imp. Light Cannon destroyed. 05267_ Lgt. Treads destroyed. 05269_ Critical hit (Meltdown: +250). 05271_ Power failure, Imp. Ion Engine shutdown. 05271_ Sub. Monowheel melted. 05271_ XP-87Y(R) destroyed. 05274_ Overheating: Core damaged (-50). Map ----- +----------------------------------------------------+ | | | | | | | | | | | | | | | | | | | | | ?????????????????????????????????????????????????? | | ?????????????????????????????????????????????????? | | ?????????????????????????????????????????????????? | | ?????????????????????????????????????????????????? | | ?????????????????????????????????????????????????? | | ?????????????????????????????????????????????????? | | ?????????????????????????????????????????????????? | | ???????????????????????????????#?????????????????? | | ?????????????????????????????? #?????????????????? | | ????????????????????????????? "#?????????????????? | | ????????????????????????????# "#?????????????????? | | ??????????????????????????? " ???????????????????? | | ?????????????????####?##### "????????????????????? | | ?????????????????# # & ?????????????????????? | | ????????????????????